bitfinex/quotes_ETHUSD_20250129
["timestamp","ask_amount","ask_price","bid_price","bid_amount"]
[1738151356066,6.37221,3138.7,3137.9,3.18678]
[1738151356067,0.8125,3137.8,3137.3,3.18739]
[1738151356266,3.18687,3137.9,3137.4,4.00424]
[1738151356427,3.18687,3137.9,3137.5,0.256]
[1738151357160,3.18687,3137.9,3137.6,0.256]
[1738151359462,3.18649,3138.3,3137.6,0.256]
[1738151359669,3.18649,3138.3,3137.7,3.18703]
[1738151359891,3.18649,3138.3,3137.7,3.531333]
[1738151360168,3.18655,3138.2,3137.7,3.531333]
[1738151361188,0.6239485,3138.5,3138.0,0.8067]
[1738151361394,3.1863,3138.5,3138.0,3.99343]
[1738151361604,3.32456985,3138.6,3138.1,3.73664]
[1738151362085,6.99442375,3138.7,3138.1,3.73664]
[1738151362610,3.18615,3138.6,3138.1,3.73664]
[1738151362901,3.18615,3138.6,3138.1,4.509657]
[1738151363466,3.18615,3138.6,3138.2,0.254]
[1738151363662,3.80831375,3138.7,3138.2,0.254]
[1738151364291,3.80831375,3138.7,3138.3,0.55]
[1738151365208,3.3263188,3138.5,3138.3,3.73641]
[1738151365457,3.3263188,3138.5,3138.4,4.708024]
[1738151365671,3.3263188,3138.5,3138.4,5.521824]
[1738151368045,6.5120488,3139.0,3138.5,0.55]
[1738151368215,6.5120488,3139.0,3138.5,3.73621]
[1738151368624,3.3263188,3139.0,3138.5,0.55]
[1738151368832,3.3263188,3139.0,3138.8,0.55]
[1738151369031,3.3263188,3139.0,3138.9,0.8132]
[1738151370156,3.3263188,3139.0,3138.9,1.3632]
[1738151370765,3.3263188,3139.0,3138.9,0.55]
[1738151371572,9.5078188,3139.0,3137.3,3.08679493]
[1738151371743,3.18639,3138.4,3137.8,3.18693]
[1738151372444,6.3728,3138.4,3137.9,0.55]
[1738151372651,3.1865,3138.3,3138.0,0.25]
[1738151373281,3.18639,3138.4,3138.0,0.25]
[1738151375837,6.5127088,3138.4,3138.0,0.25]
[1738151376031,6.5127088,3138.4,3138.0,0.967376]
[1738151377279,7.14187943,3138.4,3138.0,0.967376]
[1738151377451,3.95548943,3138.4,3138.1,0.55]
[1738151377653,3.3263188,3138.4,3138.1,3.73655]
[1738151378355,3.18617,3138.6,3138.1,3.73655]
[1738151378356,3.3263188,3138.5,3138.1,3.73655]
[1738151378566,3.3263188,3138.5,3138.2,0.7890606]
[1738151378745,3.3263188,3138.5,3138.4,3.18633]
[1738151378955,3.3263188,3138.5,3138.4,3.73633]
[1738151379341,3.3263188,3138.5,3138.4,6.73633]
[1738151381081,3.3263188,3139.0,3138.5,0.55]
[1738151381240,3.3263188,3139.0,3138.8,0.55]
[1738151383285,3.3263188,3139.0,3138.9,3.18582]
[1738151383578,3.3263188,3139.0,3138.9,3.73582]
[1738151384196,3.3263188,3139.2,3138.9,3.73582]
[1738151387653,3.3263188,3139.1,3138.9,3.73582]
[1738151388693,3.3263188,3139.1,3138.9,0.55]
[1738151392933,3.18583,3138.9,3138.8,0.248]
[1738151396871,7.3172488,3139.0,3138.8,0.248]
[1738151397070,3.99093,3139.0,3138.8,0.248]
[1738151398214,7.17673,3139.0,3138.8,0.248]
[1738151398715,3.18582,3138.9,3138.8,0.248]
[1738151399868,0.8052,3139.0,3138.8,0.248]
[1738151400190,3.1857,3139.1,3138.8,0.248]
[1738151402805,9.38199,3139.2,3138.8,0.248]
[1738151403011,3.18573,3139.0,3138.8,0.248]
[1738151404018,3.95192,3138.9,3138.8,0.248]
[1738151404194,3.18607,3138.7,3138.2,3.18652]
[1738151404377,3.18607,3138.7,3138.3,0.248]
[1738151404589,6.37217,3138.7,3138.3,0.248]
[1738151404806,3.18607,3138.7,3138.3,0.248]
[1738151405013,3.952,3138.9,3138.4,3.18633]
[1738151405189,6.37138,3139.1,3138.5,3.73617]
[1738151405382,3.18568,3139.1,3138.5,3.73617]
[1738151405581,3.18568,3139.1,3138.6,3.97658]
[1738151405822,3.18562,3139.1,3138.4,3.18626]
[1738151406121,3.18582,3139.0,3138.4,3.9706272]
[1738151407343,3.18582,3139.0,3138.5,3.18622]
[1738151408646,3.1865,3138.3,3137.7,3.187]
[1738151408791,3.18654,3138.2,3137.7,0.248]
[1738151408997,3.18654,3138.2,3137.7,3.43503]
[1738151409250,3.18654,3138.2,3137.8,0.343503]
[1738151410760,3.18654,3138.2,3137.9,0.248]
[1738151411748,0.8109,3138.3,3137.4,1.21076949]
[1738151411933,3.18689,3137.9,3137.5,0.248]
[1738151415816,3.18674,3138.1,3137.5,3.43524]
[1738151416018,3.18677,3138.0,3137.5,3.43524]
[1738151416849,3.18674,3138.1,3137.5,0.248]
[1738151417052,3.18686,3137.9,3137.5,0.248]
[1738151417215,3.18715,3137.6,3137.2,0.77]
[1738151417548,3.18732,3137.5,3137.2,1.396166]
[1738151417755,3.18732,3137.5,3137.3,0.06975827]
[1738151418137,3.18732,3137.5,3137.3,0.03097029]
[1738151418343,3.18735,3137.4,3137.3,0.03097029]
[1738151420156,3.81223796,3137.6,3137.3,0.03097029]
[1738151420461,3.18731,3137.5,3137.3,0.03097029]
[1738151421350,0.62500796,3137.6,3137.3,0.03097029]
[1738151421555,3.81220796,3137.6,3137.3,0.03097029]
[1738151421767,3.95906,3137.8,3137.3,0.03097029]
[1738151422451,4.59215829,3137.8,3137.3,0.03097029]
[1738151423053,1.40519829,3137.8,3137.3,0.03097029]
[1738151423352,3.18708,3137.7,3137.3,0.03097029]
[1738151424960,3.18708,3137.7,3137.4,0.248]
[1738151425322,3.18708,3137.7,3137.5,0.02909182]
[1738151425740,3.18708,3137.7,3137.3,0.248]
[1738151425940,3.18708,3137.7,3137.6,0.02906057]
[1738151426141,3.18708,3137.7,3137.2,3.18748]
[1738151426341,3.18708,3137.7,3137.6,0.02906057]
[1738151426542,6.37419,3137.7,3137.3,0.248]
[1738151426868,3.18708,3137.7,3137.3,0.248]
[1738151427062,3.32919753,3137.5,3137.3,0.248]
[1738151427366,3.32919753,3137.5,3137.4,0.02912308]
[1738151427967,3.32919753,3137.5,3137.3,0.248]
[1738151428272,3.32919753,3137.5,3137.4,0.0312033]
[1738151428581,3.32919753,3137.5,3137.3,0.248]
[1738151428870,3.32919753,3137.5,3137.4,0.0312033]
[1738151429068,3.32919753,3137.5,3137.4,1.69147563]
[1738151429365,3.32919753,3137.5,3137.4,4.87882563]
[1738151430537,3.32919753,3137.5,3137.4,6.87882563]
[1738151432336,3.32919753,3137.5,3137.4,6.91719272]
[1738151432774,5.37,3137.9,3137.8,4.56664]
[1738151432775,3.32919753,3137.9,3137.8,4.56664]
[1738151432960,3.32919753,3137.9,3137.8,5.397008]
[1738151433160,3.32919753,3137.9,3137.8,5.46626259]
[1738151433346,3.32919753,3137.9,3137.8,7.46626259]
[1738151435753,3.32919753,3138.3,3138.0,3.18664]
[1738151435956,3.32919753,3138.3,3138.1,0.55]
[1738151436155,3.32919753,3138.3,3138.1,0.619157]
[1738151437562,6.51563753,3138.3,3138.1,0.069157]
[1738151437764,6.51563753,3138.3,3138.2,0.248]
[1738151438293,6.51563753,3138.3,3138.2,0.31697068]
[1738151439067,3.32919753,3138.3,3138.2,0.31697068]
[1738151439972,6.51562753,3138.3,3138.2,0.31697068]
[1738151441830,3.18643,3138.3,3138.2,0.31697068]
[1738151444083,3.18643,3138.3,3138.2,0.06897068]
[1738151444599,4.01043,3138.4,3138.2,0.06897068]
[1738151444995,3.18643,3138.3,3138.2,0.06897068]
[1738151446341,4.01045,3138.4,3138.2,0.06897068]
[1738151446858,4.01045,3138.4,3138.1,0.248]
[1738151447037,7.19688,3138.4,3138.3,0.06875782]
[1738151447176,7.19688,3138.4,3138.2,0.06879034]
[1738151447374,4.01045,3138.4,3138.3,0.06875782]
[1738151447813,4.01045,3138.4,3138.1,0.248]
[1738151448014,4.01045,3138.4,3138.3,0.06875782]
[1738151448227,3.18643,3138.3,3138.2,0.06879034]
[1738151448389,3.18684,3138.0,3137.8,0.248]
[1738151448600,0.8163,3137.9,3137.8,0.248]
[1738151449341,3.18684,3138.0,3137.8,0.248]
[1738151450034,0.757,3138.1,3137.8,0.248]
[1738151450241,3.18642,3138.4,3137.8,0.248]
[1738151450398,3.18623,3138.5,3137.8,0.248]
[1738151450399,3.18665,3138.1,3137.8,0.248]
[1738151452416,0.64255695,3138.0,3137.8,0.248]
[1738151457216,0.7534,3138.3,3137.9,3.25459365]
[1738151457384,6.1817,3138.5,3138.0,3.18671]
[1738151457584,0.65043345,3138.3,3138.0,3.18667]
[1738151457790,0.65043345,3138.3,3138.1,0.06764555]
[1738151458218,9.36794,3138.5,3138.1,0.06764555]
[1738151459122,6.1817,3138.5,3138.1,0.06764555]
[1738151459436,3.18635,3138.4,3138.1,0.06764555]
[1738151459812,3.18635,3138.4,3137.9,3.18683]
[1738151460015,3.18635,3138.4,3138.2,0.06754409]
[1738151460204,3.18635,3138.4,3137.9,3.18683]
[1738151460406,3.18635,3138.4,3138.3,0.06751157]
[1738151460629,3.82339218,3138.4,3137.9,3.18683]
[1738151460940,3.82339218,3138.4,3138.0,0.06760914]
[1738151462434,0.63704218,3138.4,3138.0,0.06760914]
[1738151462638,0.63704218,3138.4,3138.0,3.25428914]
[1738151467840,9.36796,3138.5,3138.1,0.55]
[1738151468042,8.55626,3138.5,3138.1,1.3491]
[1738151468243,8.55626,3138.5,3138.2,0.06754409]
[1738151468452,9.20004926,3138.5,3138.2,0.06754409]
[1738151468715,12.38634926,3138.5,3138.2,0.06754409]
[1738151469068,9.20004926,3138.5,3138.2,0.06754409]
[1738151469751,3.83004926,3138.5,3138.2,0.06754409]
[1738151475043,5.37,3138.9,3138.6,3.18608]
[1738151475243,3.18566,3139.1,3138.6,3.18608]
[1738151475445,3.96441,3139.2,3138.7,0.0672277]
[1738151475811,3.18579,3139.0,3138.6,0.55]
[1738151476015,3.18577,3139.0,3138.8,0.06719519]
[1738151476318,3.18577,3139.0,3138.9,0.06715207]
[1738151476544,3.18577,3139.0,3138.6,0.55]
[1738151476744,3.18577,3139.0,3138.9,0.0669453]
[1738151476956,4.61508155,3139.2,3138.6,3.7361]
[1738151477164,4.61508155,3139.2,3138.9,0.0669453]
[1738151477340,4.61508155,3139.2,3138.6,4.506073]
[1738151477669,3.18568,3139.1,3139.0,0.06691279]
[1738151477812,3.18568,3139.1,3138.6,0.55]
[1738151478011,3.18568,3139.1,3139.0,0.06691279]
[1738151478520,3.18568,3139.1,3138.6,3.73609]
[1738151478721,3.18568,3139.1,3138.7,0.75924232]
[1738151480035,3.18579,3139.0,3138.7,0.06701032]
[1738151485543,3.18568,3139.1,3138.7,0.06701032]
[1738151485878,6.37139,3139.1,3138.7,0.06701032]
[1738151486951,3.18568,3139.1,3138.7,0.06701032]
[1738151487278,1.42946155,3139.2,3138.7,0.06701032]
[1738151487478,3.18593,3138.8,3138.7,0.06701032]
[1738151487782,3.96253,3138.8,3138.7,0.31474522]
[1738151488364,0.7766,3138.8,3138.7,0.31474522]
[1738151488565,3.18589,3138.9,3138.7,0.31474522]
[1738151491469,3.18592,3138.9,3138.7,0.31474522]
[1738151492688,3.18572,3139.0,3138.7,0.31474522]
[1738151492987,3.18582,3138.9,3138.7,0.31474522]
[1738151493689,4.437634,3138.9,3138.7,0.31474522]
[1738151496371,3.18582,3138.9,3138.7,0.31474522]
[1738151499721,3.97473,3138.8,3138.7,0.06674522]
[1738151499922,0.7888,3138.8,3138.3,0.248]
[1738151500102,3.1863,3138.5,3138.4,0.06683747]
[1738151502717,3.18613,3138.6,3138.4,0.06683747]
[1738151504034,4.71093,3138.6,3138.4,0.06683747]
[1738151504333,3.18623,3138.5,3138.4,0.06683747]
[1738151504530,3.18648,3138.3,3138.0,0.248]
[1738151504736,8.55623,3138.5,3138.1,0.06693504]
[1738151505435,3.18638,3138.4,3138.1,0.06693504]
[1738151508334,0.63578286,3138.3,3138.1,0.06693504]
[1738151510430,3.82226286,3138.3,3138.1,0.06693504]
[1738151510745,3.98214,3138.2,3138.1,0.06693504]
[1738151510920,3.98214,3138.2,3137.6,0.247]
[1738151511115,6.37366,3138.0,3137.7,0.06731437]
[1738151511347,3.18683,3138.0,3137.7,0.06731437]
[1738151511722,3.98218,3138.2,3137.7,0.06731437]
[1738151512132,3.98218,3138.2,3137.7,3.25429437]
[1738151513671,3.18664,3138.1,3137.7,0.06731437]
[1738151513822,3.18682,3138.0,3137.7,0.06731437]
[1738151515459,3.18684,3137.9,3137.7,0.06731437]
[1738151515631,3.18694,3137.8,3137.7,0.06731437]
[1738151515837,3.18706,3137.7,3137.2,3.96005]
[1738151516026,3.18706,3137.7,3137.2,4.20705]
[1738151516225,3.18706,3137.7,3137.3,0.06744453]
[1738151517869,3.18717,3137.6,3137.3,0.06744453]
[1738151518066,3.18706,3137.7,3137.3,0.31444453]
[1738151519229,3.18735,3137.4,3137.3,0.06744453]
[1738151519422,3.18745,3137.3,3136.9,1.0352]
[1738151520429,3.18745,3137.3,3136.9,0.7882]
[1738151520633,3.18745,3137.3,3137.0,0.247]
[1738151523871,3.18745,3137.3,3136.9,0.7882]
[1738151524052,3.18765,3137.1,3137.0,0.247]
[1738151524635,3.18755,3137.2,3137.0,0.247]
[1738151526165,3.18747,3137.3,3137.0,0.247]
[1738151526964,0.62893281,3137.1,3137.0,0.247]
[1738151528149,3.95611523,3137.1,3137.0,0.247]
[1738151528346,4.98924775,3137.1,3136.5,0.8043]
[1738151528545,3.18798,3136.8,3136.6,0.247]
[1738151529262,6.37558,3137.0,3136.6,0.247]
[1738151529663,3.18786,3136.9,3136.6,0.247]
[1738151530471,3.18786,3136.9,3136.5,0.247]
[1738151530472,0.7991,3136.9,3136.5,0.247]
[1738151530660,3.18796,3136.8,3136.3,3.1884]
[1738151530848,3.18796,3136.8,3136.4,0.247]
[1738151531253,3.18824,3136.6,3136.2,0.8213]
[1738151531449,3.18824,3136.6,3136.2,1.0683]
[1738151531656,3.18837,3136.4,3136.2,0.247]
[1738151532391,6.37649,3136.6,3136.3,0.06613984]
[1738151532684,3.1883,3136.5,3136.3,0.06613984]
[1738151535653,3.18824,3136.6,3136.3,0.06613984]
[1738151535890,3.18836,3136.4,3136.3,0.06613984]
[1738151536697,3.81185461,3136.4,3136.3,0.06613984]
[1738151537197,0.62349461,3136.4,3136.3,0.06613984]
[1738151538465,0.62349461,3136.4,3136.3,0.85933984]
[1738151538766,8.69718242,3136.7,3136.3,0.85933984]
[1738151539882,3.83664824,3136.5,3136.3,0.06613984]
[1738151540659,0.64837824,3136.5,3136.3,0.06613984]
[1738151542207,0.38365682,3136.4,3136.3,0.06613984]
[1738151542509,3.57201682,3136.4,3136.3,0.06613984]
[1738151542872,3.1885,3136.3,3136.1,0.247]
[1738151543208,3.1885,3136.3,3136.2,0.06629447]
[1738151543811,1.17595682,3136.4,3136.2,0.06629447]
[1738151544206,3.98072,3136.4,3136.2,0.06629447]
[1738151544711,3.18847,3136.3,3136.2,0.06629447]
[1738151545074,3.18866,3136.2,3135.7,0.797]
[1738151546174,3.18866,3136.2,3135.7,3.98602]
[1738151546677,3.9807,3136.4,3135.7,3.98602]
[1738151547010,3.1884,3136.4,3136.0,0.8005]
[1738151547520,0.64837824,3136.5,3136.1,3.25498704]
[1738151547821,5.37,3136.7,3136.4,0.8036]
[1738151548116,5.37,3136.7,3136.5,3.1882]
[1738151548278,5.37,3136.7,3136.6,3.18816]
[1738151548480,5.37,3136.7,3136.6,3.25567176]
[1738151548679,5.36398621,3136.7,3136.6,3.25567176]
[1738151549007,3.18761,3137.2,3136.7,3.18804]
[1738151549323,3.18761,3137.2,3136.8,0.83974664]
[1738151549838,6.37461,3137.5,3136.9,3.18783]
[1738151549994,3.18729,3137.5,3136.9,3.18777]
[1738151550325,8.55121621,3137.6,3137.0,4.0270708]
[1738151551095,5.36398621,3137.6,3137.3,0.7854]
[1738151551479,5.36398621,3137.6,3137.4,0.06683731]
[1738151551720,3.18706,3137.7,3137.4,0.06683731]
[1738151554479,6.37418,3137.7,3137.4,0.06683731]
[1738151554680,1.99495893,3137.6,3137.4,0.06683731]
[1738151555117,5.18213893,3137.6,3137.4,0.06683731]
[1738151556218,3.18725,3137.5,3137.4,0.06683731]
[1738151556396,3.18805,3136.8,3136.5,0.824]
[1738151556595,3.18834,3136.5,3136.1,1.079]
[1738151556796,3.18861,3136.2,3135.9,0.824]
[1738151557008,3.18883,3136.0,3135.8,0.263]
[1738151557917,3.18866,3136.2,3135.8,0.263]
[1738151558100,3.18868,3136.1,3135.8,0.263]
[1738151560384,3.18858,3136.2,3135.8,0.690618]
[1738151561924,1.9963425,3136.1,3135.9,3.18886]
[1738151562220,1.9963425,3136.1,3136.0,0.7501]
[1738151562430,1.9963425,3136.1,3136.0,1.36079672]
[1738151562589,1.9963425,3136.1,3136.0,2.20370519]
[1738151563643,1.9963425,3136.1,3136.0,5.39247519]
[1738151563945,1.9963425,3136.1,3136.0,2.20370519]
[1738151564388,1.9963425,3136.1,3136.0,2.47270519]
[1738151564789,1.9963425,3136.1,3136.0,5.66147519]
[1738151565192,1.9963425,3136.3,3136.1,0.55]
[1738151565542,1.9963425,3136.3,3136.2,0.56614752]
[1738151566000,1.9963425,3136.3,3136.2,0.62677911]
[1738151567234,1.9963425,3136.3,3136.2,0.06063159]
[1738151569335,1.9963425,3136.4,3136.2,0.06063159]
[1738151571507,1.9963425,3136.4,3136.3,0.55]
[1738151571932,1.9963425,3136.4,3136.3,0.61107605]
[1738151572141,1.9963425,3136.4,3136.3,4.07954605]
[1738151572321,1.9963425,3136.4,3136.3,6.11873785]
[1738151575497,1.9963425,3136.5,3136.3,6.11873785]
[1738151576442,1.9963425,3136.5,3136.4,3.73836]
[1738151576646,1.9963425,3136.5,3136.4,3.79929215]
[1738151578663,1.9963425,3136.6,3136.5,0.55]
[1738151578805,1.9963425,3136.6,3136.5,1.1618484]
[1738151579005,1.9963425,3136.6,3136.5,1.22274799]
[1738151581105,1.9963425,3136.6,3136.5,0.67274799]
[1738151581305,5.1845025,3136.6,3136.5,0.06089959]
[1738151581638,5.1845025,3136.6,3136.3,0.28]
[1738151581818,5.1845025,3136.6,3136.4,0.06082611]
[1738151582948,5.1845025,3136.6,3136.4,0.61082611]
[1738151583964,0.802,3136.7,3136.4,0.61082611]
[1738151584649,3.18822,3136.6,3136.4,0.06082611]
[1738151586633,3.99012,3136.7,3136.4,0.06082611]
[1738151586845,3.18816,3136.6,3136.4,0.06082611]
[1738151587718,0.802,3136.7,3136.4,0.06082611]
[1738151587921,3.99007,3136.7,3136.4,0.06082611]
[1738151590026,3.18798,3136.8,3136.4,0.06082611]
[1738151590443,6.37602,3136.8,3136.4,0.06082611]
[1738151590645,3.18806,3136.7,3136.4,0.06082611]
[1738151591387,3.18798,3136.8,3136.4,0.06082611]
[1738151591749,6.37602,3136.8,3136.4,0.06082611]
[1738151592875,3.18809,3136.7,3136.4,0.06082611]
[1738151593653,3.18798,3136.8,3136.4,0.06082611]
[1738151600400,3.18826,3136.5,3136.4,0.06082611]
[1738151600779,3.18826,3136.5,3136.1,0.7986]
[1738151601091,3.18826,3136.5,3136.0,0.279]
[1738151601288,3.18845,3136.4,3136.2,0.06095488]
[1738151601500,3.18845,3136.4,3136.1,0.06098744]
[1738151601702,3.18845,3136.4,3136.3,0.06092231]
[1738151601869,3.18845,3136.4,3136.2,0.06095488]
[1738151602079,3.18845,3136.4,3136.0,0.28]
[1738151602270,3.18845,3136.4,3136.3,0.06092231]
[1738151602469,3.18845,3136.4,3136.0,0.28]
[1738151602694,3.18845,3136.4,3136.3,0.06092231]
[1738151602895,3.18826,3136.5,3136.0,3.46877]
[1738151603107,3.18826,3136.5,3136.3,0.06092231]
[1738151603306,3.18826,3136.5,3136.0,4.512256]
[1738151603507,3.18826,3136.5,3136.4,0.06088975]
[1738151603715,3.18826,3136.5,3136.0,3.46877]
[1738151604001,3.18826,3136.5,3136.4,0.06088975]
[1738151604173,3.18826,3136.5,3136.0,3.46877]
[1738151604373,3.18826,3136.5,3136.4,0.06088975]
[1738151604568,3.18826,3136.5,3136.0,3.46877]
[1738151604773,3.18826,3136.5,3136.4,0.06088975]
[1738151605002,3.83130352,3136.5,3136.0,3.46877]
[1738151605191,3.83130352,3136.5,3136.4,0.06088975]
[1738151605401,3.83130352,3136.5,3136.0,3.46877]
[1738151605586,3.83130352,3136.5,3136.4,0.06088975]
[1738151605787,3.83130352,3136.5,3136.0,3.46877]
[1738151605973,3.83130352,3136.5,3136.4,0.06099048]
[1738151606174,3.18839,3136.4,3136.0,0.28]
[1738151607271,3.18839,3136.4,3136.1,0.06108818]
[1738151608102,3.97167,3136.3,3136.1,0.06108818]
[1738151608491,3.97167,3136.3,3135.9,3.0]
[1738151608798,3.97167,3136.3,3136.2,0.06105561]
[1738151609290,3.97167,3136.3,3135.9,3.0]
[1738151609489,3.97167,3136.3,3136.2,0.06105561]
[1738151609691,3.97167,3136.3,3135.9,3.0]
[1738151609898,3.97167,3136.3,3136.2,0.06105561]
[1738151610219,3.97167,3136.3,3135.9,3.0]
[1738151610399,3.97167,3136.3,3136.2,0.06105561]
[1738151610594,3.97167,3136.3,3135.9,3.0]
[1738151610800,3.97167,3136.3,3136.2,0.06105561]
[1738151611116,5.28837697,3136.3,3136.2,0.06105561]
[1738151611322,3.97167,3136.3,3135.8,3.46697]
[1738151611507,3.97167,3136.3,3136.2,0.06105561]
[1738151611714,3.97167,3136.3,3135.8,3.46697]
[1738151611913,3.97167,3136.3,3136.2,0.06105561]
[1738151612208,3.97167,3136.3,3135.8,0.278]
[1738151612408,3.97167,3136.3,3136.2,0.06105561]
[1738151612608,3.97167,3136.3,3135.8,3.46695]
[1738151612822,3.97167,3136.3,3136.2,0.06105561]
[1738151613028,3.97167,3136.3,3135.8,3.46695]
[1738151613189,3.97167,3136.3,3136.2,0.06105561]
[1738151613390,3.97167,3136.3,3135.8,3.46695]
[1738151613592,3.97167,3136.3,3136.2,0.06105561]
[1738151613792,3.97167,3136.3,3135.8,3.46695]
[1738151614023,3.97167,3136.3,3136.2,0.06105561]
[1738151614224,3.97167,3136.3,3135.8,6.65584]
[1738151614431,3.97167,3136.3,3136.2,0.06105561]
[1738151614748,5.36398621,3136.4,3136.2,0.06105561]
[1738151615038,5.36398621,3136.4,3135.9,4.50718318]
[1738151615329,5.36398621,3136.4,3135.9,2.4975305]
[1738151615629,5.36398621,3136.4,3136.0,3.24989075]
[1738151617590,5.36398621,3136.4,3136.0,3.24982075]
[1738151620198,5.36398621,3136.4,3136.0,3.52182075]
[1738151620434,5.36398621,3136.4,3136.0,3.24982075]
[1738151620637,5.36398621,3136.4,3136.0,3.52182075]
[1738151621427,4.61613352,3136.5,3136.0,3.52182075]
[1738151621624,7.80447352,3136.5,3136.0,3.52182075]
[1738151621938,4.61613352,3136.5,3136.0,0.33312075]
[1738151622099,3.1884,3136.4,3136.0,0.33312075]
[1738151624147,4.61613352,3136.5,3136.0,0.33312075]
[1738151625246,4.61613352,3136.5,3136.0,3.52187075]
[1738151625723,7.80449352,3136.5,3136.0,3.52187075]
[1738151626536,4.61613352,3136.5,3136.0,3.52187075]
[1738151627499,3.83133352,3136.5,3136.0,3.52187075]
[1738151627704,3.83133352,3136.5,3136.1,0.758]
[1738151627920,7.01966352,3136.5,3136.1,0.81910406]
[1738151628105,3.83133352,3136.5,3136.1,0.81910406]
[1738151629608,3.18837,3136.4,3136.1,0.81910406]
[1738151632349,6.37682,3136.4,3136.1,0.06110406]
[1738151633056,3.18837,3136.4,3136.1,0.06110406]
[1738151633959,6.37681,3136.4,3136.1,0.06110406]
[1738151634115,3.18837,3136.4,3136.1,0.06110406]
[1738151635649,3.18847,3136.3,3136.1,0.06110406]
[1738151635975,4.01947,3136.3,3136.1,0.06110406]
[1738151636162,4.01947,3136.3,3136.0,0.275]
[1738151636320,4.01947,3136.3,3136.2,0.06109803]
[1738151636521,4.01947,3136.3,3136.1,0.0611306]
[1738151636723,4.01947,3136.3,3136.2,0.06109803]
[1738151637256,4.01947,3136.3,3136.0,0.275]
[1738151637553,4.01947,3136.3,3136.1,0.0611306]
[1738151639798,3.18857,3136.2,3136.1,0.0611306]
[1738151640083,3.18857,3136.2,3135.8,0.273]
[1738151640289,3.18878,3136.0,3135.9,0.06119574]
[1738151640427,3.18878,3136.0,3135.7,0.273]
[1738151640870,3.18878,3136.0,3135.8,0.06136084]
[1738151641868,3.18862,3136.2,3135.8,0.06136084]
[1738151642031,3.18869,3136.1,3135.8,0.06136084]
[1738151642232,3.18862,3136.2,3135.8,0.06136084]
[1738151642633,3.18874,3136.1,3135.8,0.06136084]
[1738151643867,3.18878,3136.0,3135.8,0.06136084]
[1738151644472,3.18868,3136.1,3135.8,0.06136084]
[1738151650285,3.18862,3136.2,3135.8,0.06136084]
[1738151650451,3.18882,3136.0,3135.8,0.06136084]
[1738151652877,3.18887,3135.9,3135.8,0.06136084]
[1738151656355,4.67331923,3135.9,3135.8,0.06136084]
[1738151656549,3.18925,3135.6,3135.3,0.285982]
[1738151656954,3.18925,3135.6,3135.4,0.06169268]
[1738151658069,3.18928,3135.5,3135.4,0.06169268]
[1738151658517,4.00028,3135.5,3135.4,0.06169268]
[1738151658792,4.719226,3135.5,3135.4,0.06169268]
[1738151659176,3.18938,3135.4,3135.3,0.021982]
[1738151659479,3.18938,3135.4,3135.3,0.0818672]
[1738151659686,3.18938,3135.4,3135.3,0.0893672]
[1738151662191,3.83418926,3135.4,3135.3,0.0893672]
[1738151662395,4.68953079,3135.4,3135.3,0.0893672]
[1738151663575,4.68953079,3135.4,3135.3,0.029482]
[1738151665292,4.68203079,3135.4,3135.3,0.029482]
[1738151665660,0.64480926,3135.4,3135.3,0.029482]
[1738151666027,8.55309621,3135.7,3135.4,0.0075]
[1738151666191,11.74223621,3135.7,3135.4,0.0075]
[1738151666399,8.55309621,3135.7,3135.6,0.0075]
[1738151666895,8.55309621,3135.7,3135.6,0.06805668]
[1738151668267,9.18605648,3135.7,3135.6,0.06805668]
[1738151668667,9.18605648,3135.7,3135.6,0.0075]
[1738151668872,3.18921,3135.6,3135.4,0.0075]
[1738151669301,3.18928,3135.5,3135.4,0.0075]
[1738151670301,3.18921,3135.6,3135.4,0.0075]
[1738151671199,3.18928,3135.5,3135.4,0.0075]
[1738151671400,3.18928,3135.5,3135.4,0.015]
[1738151679771,5.36398621,3135.7,3135.4,0.015]
[1738151680025,5.36398621,3135.7,3135.6,0.8148]
[1738151680268,0.8157,3135.7,3135.3,0.021982]
[1738151680472,3.0,3135.6,3134.1,0.7885]
[1738151680706,0.7618,3134.9,3134.1,0.7885]
[1738151681221,3.19015,3134.7,3134.2,0.015]
[1738151681515,3.1902,3134.6,3134.2,0.015]
[1738151682166,3.1903,3134.5,3134.4,0.015]
[1738151682566,3.1903,3134.5,3134.4,0.06593636]
[1738151684828,3.19005,3134.8,3134.4,0.06593636]
[1738151685139,3.18969,3135.1,3135.0,0.02322266]
[1738151685304,3.84020186,3135.1,3135.0,0.02322266]
[1738151685503,3.18954,3135.3,3135.1,0.015]
[1738151685716,3.18958,3135.2,3135.1,0.015]
[1738151686230,3.18951,3135.3,3135.1,0.015]
[1738151686447,3.1894,3135.4,3135.1,0.015]
[1738151686648,3.18877,3136.1,3135.1,0.015]
[1738151686649,3.18905,3135.8,3135.1,0.015]
[1738151686937,0.7834,3135.9,3135.3,0.015]
[1738151686938,3.18929,3135.5,3135.3,0.015]
[1738151687530,3.18909,3135.7,3135.3,0.015]
[1738151687840,3.18932,3135.5,3135.3,0.015]
[1738151688201,3.18938,3135.4,3135.1,0.015]
[1738151688623,3.18932,3135.5,3135.1,0.015]
[1738151689132,3.18932,3135.5,3135.3,0.015]
[1738151693651,0.7834,3135.9,3135.3,0.015]
[1738151693858,0.64326514,3135.8,3135.3,0.015]
[1738151694154,3.18925,3135.6,3135.3,0.015]
[1738151695242,3.18934,3135.5,3135.3,0.015]
[1738151695717,3.18928,3135.5,3135.3,0.015]
[1738151695918,3.18928,3135.5,3135.1,0.015]
[1738151696243,3.18928,3135.5,3135.1,0.41773327]
[1738151697236,3.18928,3135.5,3135.3,0.015]
[1738151697603,3.18928,3135.5,3135.4,0.06536664]
[1738151698841,3.18908,3135.7,3135.5,0.015]
[1738151699044,0.64326514,3135.8,3135.5,0.8027]
[1738151699045,3.83223514,3135.8,3135.5,0.8027]
[1738151699338,3.83223514,3135.8,3135.7,0.015]